Cogmind - Beta 10.2 @@@ ROGUE MODE // 2021.05.19 @ 10:42:15 Player: ChromeKnight Result: Heading to fleet! Performance ------------- Evolutions (9) 4500 Regions Visited (15) 3000 Robots Destroyed (108) 540 Value Destroyed (3578) 3578 Prototype IDs (11) 220 Alien Tech Used (3) 600 Bonus (6956) 6956 TOTAL SCORE: 19394 Bonus ------- Follower Combat Kills 456 Used Core Reset Matrix 3000 Scanned by Researcher 500 Win 3000 Cogmind --------- Core Integrity 60/1600 Matter 77/300 Energy 100/100 System Corruption 2% Temperature Cool (0) Movement Core (50) Location To Fleet Rendezvous Parts ------- > --- POWER (3) -------- (None) > --- PROPULSION (5) --- (None) > --- UTILITY (14) ----- Advanced Cryofiber Web Advanced Visual Processing Unit Advanced Melee Analysis Suite Advanced Target Analyzer Advanced Core Analyzer > --- WEAPON (3) ------- (None) > --- INVENTORY (4) ---- Light Particle Reactor Enhanced Force Lance Peak State ------------ > --- POWER ------------ Micro Fission Core Light Particle Reactor Light Quantum Reactor > --- PROPULSION ------- Diametric Drive Impulse Thruster Array Impulse Thruster Array > --- UTILITY ---------- Advanced Cryofiber Web 2N-1CE's Frost Array Improved Coolant Injector Advanced Visual Processing Unit Advanced Melee Analysis Suite Advanced Melee Analysis Suite Advanced Melee Analysis Suite Advanced Target Analyzer Improved Core Analyzer Advanced Core Analyzer Quantum Capacitor Improved Power Shielding > --- WEAPON ----------- Heavy Quantum Rifle Enhanced Force Lance > --- INVENTORY -------- Light Particle Reactor Diametric Drive Heavy Quantum Rifle Portable AFG [Rating: 166] Favorites ----------- Power Micro Fission Core Engine Light Ion Engine Power Core Micro Fission Core Reactor Light Antimatter Reactor Propulsion Improved Carbon-fiber Leg Treads Light Treads Leg Improved Carbon-fiber Leg Flight Unit Diametric Drive Utility Advanced Melee Analysis Suite Device Microactuators Storage Large Storage Unit Processor Advanced Melee Analysis Suite Protection Improved Light Armor Plating Artifact Matter Drive Weapon Axe Energy Gun Warp Gun Energy Cannon Heavy Neutron Cannon Ballistic Gun Improved Assault Rifle Ballistic Cannon Light Cannon Special Weapon Mining Laser Impact Weapon Shock Maul Slashing Weapon Axe Piercing Weapon Makeshift Spear Build | -11 -10 -10 -9 -9 -8 -7 -6 -5 -4 -3 -3 -2 -2 -1 -1 ------- Run | Scr Mat Min Mat Min Mat Fac Fac Fac Fac Res Tes Res Qua Acc Com Slots Evolved 18 | . . . 2 . 2 2 2 2 2 2 . 2 . 2 . Power 2 | . . . . . . . . . . 1 . 1 . . . Propulsion 3 | . . . . . 1 . . . . 1 . 1 . . . Utility 12 | . . . 2 . 1 1 2 2 2 . . . . 2 . Weapon 1 | . . . . . . 1 . . . . . . . . . Parts Attached 180 | 6 2 10 13 8 8 24 22 8 17 8 27 13 4 9 1 Power 23 | 1 . 2 3 1 . 5 2 1 . 2 1 3 . 2 . Engine 7 | 1 . 1 3 1 . . 1 . . . . . . . . Core 11 | . . 1 . . . 5 1 1 . 2 . 1 . . . Reactor 5 | . . . . . . . . . . . 1 2 . 2 . Propulsion 53 | 2 . 3 4 5 1 9 6 . 6 2 9 2 1 3 . Treads 2 | . . 2 . . . . . . . . . . . . . Leg 34 | 2 . 1 4 5 1 9 6 . 6 . . . . . . Wheel . | . . . . . . . . . . . . . . . . Hover . | . . . . . . . . . . . . . . . . Flight 17 | . . . . . . . . . . 2 9 2 1 3 . Utility 69 | 1 2 1 4 1 5 8 12 7 10 3 5 5 3 2 . Device 23 | . . . . . . . 4 4 5 2 4 2 2 . . Storage 5 | 1 1 . . . 1 . 1 . . . 1 . . . . Processor 20 | . 1 1 2 . 2 3 2 2 2 1 . 3 . 1 . Hackware . | . . . . . . . . . . . . . . . . Protection 20 | . . . 2 1 2 5 5 1 3 . . . . 1 . Artifact 1 | . . . . . . . . . . . . . 1 . . Weapon 35 | 2 . 4 2 1 2 2 2 . 1 1 12 3 . 2 1 Energy Gun 9 | 1 . 1 . . . . . . . . 3 1 . 2 1 Energy Cannon 1 | . . . . . . . . . . . . 1 . . . Ballistic Gun 6 | 1 . 1 2 1 . . . . . . 1 . . . . Ballistic Cannon 2 | . . 1 . . . . . . . . 1 . . . . Launcher . | . . . . . . . . . . . . . . . . Special Weapon 1 | . . 1 . . . . . . . . . . . . . Impact Weapon 10 | . . . . . . . 1 . 1 1 7 . . . . Slashing Weapon 4 | . . . . . 1 2 1 . . . . . . . . Piercing Weapon 2 | . . . . . 1 . . . . . . 1 . . . Special Melee Weapon . | . . . . . . . . . . . . . . . . Unidentified Prototypes 14 | . . . 1 . . . 1 2 . . 6 1 3 . . Parts Lost 58 | . . 9 . . . 6 2 . 22 . 2 . 3 3 11 Power 8 | . . 2 . . . 1 1 . 1 . . . . 2 1 Propulsion 18 | . . 3 . . . 2 . . 7 . 1 . 1 1 3 Utility 23 | . . . . . . 3 1 . 11 . 1 . 1 . 6 Weapon 9 | . . 4 . . . . . . 3 . . . 1 . 1 Highest Loss Streak 17 | . . 5 . . . 2 1 . 17 . 2 . 2 1 11 Average Slot Usage (%) 92 | . 99 84 99 100 99 99 99 100 92 26 64 74 84 72 59 Engine 3 | . 14 9 11 11 9 . . . . . . . . . . Core 3 | . . 2 . . . 5 4 5 4 2 4 3 4 4 2 Treads 1 | . . 15 4 . . . . . . . . . . . . Leg 16 | . 28 5 16 22 27 22 20 17 14 . . . . . . Flight 1 | . . . . . . . . . . . 11 17 17 12 8 Device 6 | . . . . . . . 9 17 15 . 11 16 16 16 12 Storage 6 | . 14 14 11 11 9 7 6 5 5 . . . . . . Processor 22 | . 13 14 22 22 18 22 22 23 24 20 20 24 28 24 22 Protection 10 | . . . 11 11 18 14 13 11 11 . . . . . 2 Ballistic Gun 5 | . 14 9 19 22 4 . . . . . . . . . . Impact Weapon 2 | . . . . . . . 4 5 4 . 8 . . . . Slashing Weapon 4 | . . . . . 6 15 7 5 4 . . . . . . Piercing Weapon 3 | . . . . . 6 7 6 5 4 . . . 4 4 2 Naked Turns . | . . . . . . . . . . . . . . . . Heaviest Build 58 | 10 14 21 24 21 34 50 52 49 53 19 49 51 51 58 58 Greatest Support 62 | 20 20 40 40 33 46 54 56 56 57 50 50 51 51 62 62 Greatest Overweight (x) 6 | . . 6 . . . 1 . . 6 6 . . . 1 2 Average Overweight (x) . | . . . . . . . . . . . . . . . . Largest Inventory Capacity 12 | 6 8 8 8 8 10 10 10 10 10 10 12 4 4 4 4 Average Capacity 8 | 4 7 8 8 8 8 10 10 10 10 4 4 4 4 4 4 Most Carried 10 | . 1 8 8 8 9 10 10 10 10 6 4 4 4 4 4 Average Carried 7 | . . 5 7 7 7 9 9 9 9 3 3 3 3 3 3 Final Capacity 10 | 6 8 8 8 8 10 10 10 10 10 4 4 4 4 4 4 Final Carried 10 | . 1 8 8 8 9 10 10 10 6 3 3 3 3 3 2 Class Distribution -------------------- 80% | Mutant 10% | Scavenger-Mutant 5% | Sprinter 3% | Generator-Sprinter Dominant Class ---------------- Mutant | -10/Materials Scavenger-Mutant | -10/Mines Scavenger-Mutant | -9/Materials Mutant | -9/Mines Mutant | -8/Materials Mutant | -7/Factory Mutant | -6/Factory Mutant | -5/Factory Mutant | -4/Factory Mutant | -3/Research Mutant | -3/Testing Sprinter | -2/Research Generator-Sprinter | -2/Quarantine Sprinter | -1/Access Generator-Sprinter | -1/Command Resources | -11 -10 -10 -9 -9 -8 -7 -6 -5 -4 -3 -3 -2 -2 -1 -1 ----------- Run | Scr Mat Min Mat Min Mat Fac Fac Fac Fac Res Tes Res Qua Acc Com Matter Collected 2451 | 211 73 116 698 170 80 234 252 50 218 60 66 124 38 61 . Remotely . | . . . . . . . . . . . . . . . . Salvage Created 4789 | . 87 167 822 256 62 1184 805 203 822 100 66 46 108 61 . Parts 259 | . 2 16 57 19 4 57 36 5 45 2 3 4 4 5 . Haulers Intercepted 9 | . . . 3 . 1 . 2 . 2 1 . . . . . Recyclers Shooed 6 | . 1 3 2 . . . . . . . . . . . . Parts Field Recycled . | . . . . . . . . . . . . . . . . Retrieved Matter . | . . . . . . . . . . . . . . . . Parts Self-Destructed . | . . . . . . . . . . . . . . . . Prevented . | . . . . . . . . . . . . . . . . Kills | -11 -10 -10 -9 -9 -8 -7 -6 -5 -4 -3 -3 -2 -2 -1 -1 ------- Run | Scr Mat Min Mat Min Mat Fac Fac Fac Fac Res Tes Res Qua Acc Com Combat Hostiles Destroyed 74 | . 2 6 14 5 1 18 10 3 14 . 1 . . . . Melee 46 | . . . . . 1 18 10 3 14 . . . . . . Guns 20 | . 2 1 11 5 . . . . . . 1 . . . . Cannons 8 | . . 5 3 . . . . . . . . . . . . Classes Destroyed 15 | . 2 3 4 3 . 1 . . 1 . . . 1 . . Worker 5 | . . . . 2 . . 2 . 1 . . . . . . Builder 2 | . . . 1 . . . . . 1 . . . . . . Tunneler 3 | . . . . 2 . . . . . . . . . 1 . Hauler 9 | . . . 3 . 1 . 2 . 2 1 . . . . . Recycler 6 | . . 1 1 1 . 2 1 . . . . . . . . Operator 3 | . 1 . . . . . . . . . . . 1 1 . Watcher 5 | . . . 3 . . 1 . . . . . 1 . . . Swarmer 23 | . . 3 4 3 1 . 4 . 8 . . . . . . Grunt 23 | . 2 1 4 1 . 11 . 2 1 . 1 . . . . Brawler 2 | . . . 1 . . 1 . . . . . . . . . Duelist 1 | . . . . 1 . . . . . . . . . . . Researcher 1 | . . . . . . . . . . . . . 1 . . Sentry 19 | . . 2 5 . . 5 4 1 2 . . . . . . Hunter 1 | . . . . . . . . . 1 . . . . . . Programmer 5 | . . . . . . 1 2 . 2 . . . . . . Best Kill Streak 6 | . 1 3 5 4 1 6 4 2 5 1 1 1 2 2 . Combat Bots Only 5 | . 1 3 4 3 1 5 4 2 5 . 1 . . . . Max Kills in Single Turn 2 | . 1 1 2 1 1 1 1 1 1 1 1 1 1 1 . Gunslinging . | . . . . . . . . . . . . . . . . Exploded . | . . . . . . . . . . . . . . . . Melee 1 | . . . . . 1 1 1 1 1 . . . . . . Uniques/NPCs Destroyed . | . . . . . . . . . . . . . . . . Combat | -11 -10 -10 -9 -9 -8 -7 -6 -5 -4 -3 -3 -2 -2 -1 -1 -------- Run | Scr Mat Min Mat Min Mat Fac Fac Fac Fac Res Tes Res Qua Acc Com Damage Taken 10913 | . 184 717 363 129 19 1222 857 166 3470 114 383 . 478 355 2456 Core 2768 | . 35 194 51 19 10 67 75 . 503 63 39 . 172 22 1518 Absorbed by Shields 207 | . . . . . . . . . . . . . . . 207 Core Remaining (%) 73 | 100 . 8 . 82 98 90 91 100 56 . 92 . 88 . 3 Volleys Fired 141 | . 16 26 40 15 . . . . . . 14 12 . 13 5 Largest 2 | . 2 2 2 2 . . . . . . 1 1 . 1 1 Hottest 100 | . 70 100 58 46 . . . . . . 100 90 . 100 100 Shots Fired 228 | . 32 42 80 30 . . . . . . 14 12 . 13 5 Gun 197 | . 32 25 66 30 . . . . . . 14 12 . 13 5 Cannon 28 | . . 14 14 . . . . . . . . . . . . Launcher . | . . . . . . . . . . . . . . . . Special 3 | . . 3 . . . . . . . . . . . . . Kinetic 157 | . 16 31 80 30 . . . . . . . . . . . Thermal 71 | . 16 11 . . . . . . . . 14 12 . 13 5 Explosive . | . . . . . . . . . . . . . . . . Electromagnetic . | . . . . . . . . . . . . . . . . Robot Hit Streak 35 | . 12 8 35 11 . . . . . . 13 14 . 15 . Robot Miss Streak 3 | . 3 2 2 1 . . . . . . . . . 1 . Penetration Max . | . . . . . . . . . . . . . . . . Secondary Targets 4 | . . . 2 2 . . . . . . . . . . . Max Gunslinging Chain 1 | . . . 1 1 . . . . . . . . . . . Capacitor 28 | . . . . . . . . . . . . 12 . 13 3 Shots Hit Robots 332 | . 23 28 63 23 9 53 55 16 50 4 2 1 3 2 . Core Hits 168 | . 7 14 29 11 2 35 22 7 29 2 3 2 2 3 . Critical Hits 8 | . 1 . . 1 . 3 2 . 1 . . . . . . Critical Kills 3 | . 1 . . . . . 1 . 1 . . . . . . Critical Parts Destroyed 3 | . . . . 1 . 2 . . . . . . . . . Melee Attacks 280 | . . . . . 9 71 78 25 67 4 8 3 15 . . Impact 46 | . . . . . . . 22 5 7 4 8 . . . . Slashing 36 | . . . . . . 12 10 3 11 . . . . . . Piercing 198 | . . . . . 9 59 46 17 49 . . 3 15 . . Sneak Attacks 18 | . . . . . 2 3 7 . 4 1 . . 1 . . Combat Hostiles 2 | . . . . . . . 2 . . . . . . . . Follow-up Attacks 33 | . . . . . . 7 11 5 10 . . . . . . Damage Inflicted 10246 | . 250 488 990 351 433 1921 2282 526 2038 230 160 54 364 158 1 Guns 1949 | . 250 237 822 351 . . . . . . 160 54 . 75 . Cannons 333 | . . 165 168 . . . . . . . . . . . . Explosions 83 | . . . . . . . . . . . . . . 83 . Melee 7794 | . . . . . 433 1921 2282 526 2038 230 . . 364 . . Ramming 15 | . . 14 . . . . . . . . . . . . 1 Kinetic 1743 | . 84 318 990 351 . . . . . . . . . . . Thermal 611 | . 166 156 . . . . . . . . 160 54 . 75 . Explosive . | . . . . . . . . . . . . . . . . Electromagnetic 83 | . . . . . . . . . . . . . . 83 . Impact 833 | . . . . . . . 467 50 86 230 . . . . . Slashing 943 | . . . . . . 266 242 115 320 . . . . . . Piercing 6018 | . . . . . 433 1655 1573 361 1632 . . . 364 . . Highest Corruption 14 | . . . . . . 4 6 4 14 . . . 2 1 2 Average Corruption 4 | . . . . . . 2 4 4 7 . . . 1 1 1 Corruption Purged . | . . . . . . . . . . . . . . . . Effects 78 | . . . . . . 14 17 3 43 . . . . 1 . Message Errors 14 | . . . . . . 3 1 1 9 . . . . . . Matter Fused 17 | . . . . . . 1 5 2 9 . . . . . . Heat Flow Errors 11 | . . . . . . 4 1 . 6 . . . . . . Energy Discharges 11 | . . . . . . 4 1 . 6 . . . . . . Data Loss (minor) 8 | . . . . . . 1 4 . 2 . . . . 1 . Data Loss (major) 2 | . . . . . . . 1 . 1 . . . . . . Misdirections 6 | . . . . . . . . . 6 . . . . . . Targeting Errors 9 | . . . . . . 1 4 . 4 . . . . . . Overload Shots . | . . . . . . . . . . . . . . . . Overflow Damage 613 | . . 13 7 . 42 139 183 5 32 . . . 161 31 . Projectiles 20 | . . 13 7 . . . . . . . . . . . . Explosions 31 | . . . . . . . . . . . . . . 31 . Melee 562 | . . . . . 42 139 183 5 32 . . . 161 . . Knockbacks 2 | . . 1 1 . . . . . . . . . . . . Impact . | . . . . . . . . . . . . . . . . Kinetic 2 | . . 1 1 . . . . . . . . . . . . Secondary . | . . . . . . . . . . . . . . . . Self-Inflicted Damage 49 | . . 5 . . . . . . . . . . . 44 . Shots 1 | . . . . . . . . . . . . . . 1 . Rammed 4 | . . 3 . . . . . . . . . . . . 1 Targets Rammed 5 | . . 4 . . . . . . . . . . . . 1 Kicked 1 | . . 1 . . . . . . . . . . . . . Crushed . | . . . . . . . . . . . . . . . . Highest Temperature 270 | . 270 150 18 . . 222 260 . 171 . 199 11 . . . Average Temperature 74 | . 109 56 10 . . 77 135 . 72 . 80 6 . . . Received Heat Transfer 1479 | . 99 252 87 6 . 354 129 54 279 27 93 . 9 63 27 Siege Activations . | . . . . . . . . . . . . . . . . Robots Corrupted . | . . . . . . . . . . . . . . . . Combat Hostiles . | . . . . . . . . . . . . . . . . Parts Fried 1 | . . . . . . . . . . . . . . 1 . Impact Corruptions 6 | . . . . . . . 6 . . . . . . . . Robots Melted . | . . . . . . . . . . . . . . . . Combat Hostiles . | . . . . . . . . . . . . . . . . Parts Melted . | . . . . . . . . . . . . . . . . Heat Transferred 1224 | . 481 373 . . . . . . . . 222 74 . 74 . Parts Sabotaged . | . . . . . . . . . . . . . . . . Parts Stolen . | . . . . . . . . . . . . . . . . Parts Stripped . | . . . . . . . . . . . . . . . . Power Chain Reactions . | . . . . . . . . . . . . . . . . Missiles Intercepted . | . . . . . . . . . . . . . . . . Alert | -11 -10 -10 -9 -9 -8 -7 -6 -5 -4 -3 -3 -2 -2 -1 -1 ------- Run | Scr Mat Min Mat Min Mat Fac Fac Fac Fac Res Tes Res Qua Acc Com Peak Influence 446 | . 115 134 303 207 226 208 221 159 233 154 402 382 381 428 446 Initial 267 | . . 44 . 62 42 102 63 53 25 102 86 225 214 228 267 Average 120 | . 48 56 183 110 86 86 105 74 77 114 275 287 262 275 339 Maximum Alert Level 2 | . . . 1 1 1 1 1 . 1 . 2 1 1 2 2 Low Security (%) 81 | 100 100 100 51 78 85 98 97 100 97 100 37 . . . . Level 1 18 | . . . 48 21 14 1 2 . 2 . 57 100 100 96 93 Level 2 . | . . . . . . . . . . . 4 . . 3 6 Level 3 . | . . . . . . . . . . . . . . . . Level 4 . | . . . . . . . . . . . . . . . . Level 5 . | . . . . . . . . . . . . . . . . High Security . | . . . . . . . . . . . . . . . . Max Security . | . . . . . . . . . . . . . . . . Squads Dispatched 21 | . 2 . . . 1 2 2 2 6 1 1 1 1 . 2 Investigation 4 | . . . . . . . . 1 2 . . . . . 1 Extermination 6 | . . . . . . 1 2 1 2 . . . . . . Reinforcement 8 | . 2 . . . . 1 . . . 1 1 1 1 . 1 Assault . | . . . . . . . . . . . . . . . . Garrison 3 | . . . . . 1 . . . 2 . . . . . . Intercept . | . . . . . . . . . . . . . . . . Construction Impeded . | . . . . . . . . . . . . . . . . Haulers Reinforced 1 | . . . . . . . . . . 1 . . . . . Stealth | -11 -10 -10 -9 -9 -8 -7 -6 -5 -4 -3 -3 -2 -2 -1 -1 --------- Run | Scr Mat Min Mat Min Mat Fac Fac Fac Fac Res Tes Res Qua Acc Com Distress Signals 14 | . . . 1 . 2 5 . . 3 . . 1 . . 2 Communications Jammed . | . . . . . . . . . . . . . . . . Distress Signals . | . . . . . . . . . . . . . . . . Times Spotted 227 | . 8 8 17 11 7 29 15 7 47 3 19 6 13 10 27 Peak Tracking Total 26 | . 4 3 4 4 3 7 4 4 14 2 10 4 9 6 26 Tactical Retreats 24 | . 1 1 . 1 . 2 2 1 7 . 2 2 2 1 2 Traps | -11 -10 -10 -9 -9 -8 -7 -6 -5 -4 -3 -3 -2 -2 -1 -1 ------- Run | Scr Mat Min Mat Min Mat Fac Fac Fac Fac Res Tes Res Qua Acc Com Traps Triggered 18 | . . . . . . 6 2 . 4 . . . 1 . 5 Indirectly . | . . . . . . . . . . . . . . . . Trap Hack Attempts . | . . . . . . . . . . . . . . . . Triggered . | . . . . . . . . . . . . . . . . Disarmed . | . . . . . . . . . . . . . . . . Reprogrammed . | . . . . . . . . . . . . . . . . Reused 1 | . . . . 1 . . . . . . . . . . . Traps Extracted . | . . . . . . . . . . . . . . . . Installed 3 | . . . . 2 . 1 . . . . . . . . . Triggered 1 | . . . . 1 . . . . . . . . . . . Machines | -11 -10 -10 -9 -9 -8 -7 -6 -5 -4 -3 -3 -2 -2 -1 -1 ---------- Run | Scr Mat Min Mat Min Mat Fac Fac Fac Fac Res Tes Res Qua Acc Com Machines Disabled 16 | . . . . . 1 . . . . . 6 3 2 3 1 Max in Single Turn 1 | . . . . . . . . . . . 1 1 1 1 1 Garrison Access 1 | . . . . . . 1 . . . . . . . . . Machines Sabotaged . | . . . . . . . . . . . . . . . . Garrisons Compromised . | . . . . . . . . . . . . . . . . Overloaded Fab Kills . | . . . . . . . . . . . . . . . . Fab Network Shutdowns . | . . . . . . . . . . . . . . . . Hacking | -11 -10 -10 -9 -9 -8 -7 -6 -5 -4 -3 -3 -2 -2 -1 -1 --------- Run | Scr Mat Min Mat Min Mat Fac Fac Fac Fac Res Tes Res Qua Acc Com Machines Accessed 22 | . . . 2 . 1 3 2 1 4 2 4 . . 1 2 Terminals 12 | . . . 1 . 1 . . 1 3 . 3 . . 1 2 Fabricators 7 | . . . . . . 2 1 . 1 2 1 . . . . Repair Stations 2 | . . . 1 . . . 1 . . . . . . . . Recycling Units . | . . . . . . . . . . . . . . . . Scanalyzers . | . . . . . . . . . . . . . . . . Garrison Access 1 | . . . . . . 1 . . . . . . . . . Total Hacks 37 | . . . 9 . 2 3 3 3 7 3 4 . . 1 2 Successful 20 | . . . 5 . 1 2 3 2 3 . 2 . . 1 1 Failed 17 | . . . 4 . 1 1 . 1 4 3 2 . . . 1 Catastrophic 3 | . . . . . . . . . 2 . 1 . . . . Database Lockouts . | . . . . . . . . . . . . . . . . Manual 5 | . . . 2 . . . . 1 2 . . . . . . Terminals 19 | . . . 2 . 2 . . 3 6 . 3 . . 1 2 Fabricators 8 | . . . . . . 2 1 . 1 3 1 . . . . Repair Stations 9 | . . . 7 . . . 2 . . . . . . . . Recycling Units . | . . . . . . . . . . . . . . . . Scanalyzers . | . . . . . . . . . . . . . . . . Garrison Access 1 | . . . . . . 1 . . . . . . . . . Terminal Hacks 7 | . . . . . 1 . . 1 2 . 1 . . 1 1 Record 5 | . . . . . 1 . . . 2 . 1 . . 1 . Robot Schematic 1 | . . . . . . . . . . . . . . . 1 Zone Layout 1 | . . . . . . . . 1 . . . . . . . Fabricator Hacks 4 | . . . . . . 1 1 . 1 . 1 . . . . Build 4 | . . . . . . 1 1 . 1 . 1 . . . . Repair Station Hacks 6 | . . . 4 . . . 2 . . . . . . . . Scan Component 3 | . . . 2 . . . 1 . . . . . . . . Repair 3 | . . . 2 . . . 1 . . . . . . . . Recycling Unit Hacks . | . . . . . . . . . . . . . . . . Scanalyzer . | . . . . . . . . . . . . . . . . Garrison Access Hacks 1 | . . . . . . 1 . . . . . . . . . Seal Access 1 | . . . . . . 1 . . . . . . . . . Unauthorized Hacks 2 | . . . 1 . . . . 1 . . . . . . . Terminals 2 | . . . 1 . . . . 1 . . . . . . . Track 2 | . . . 1 . . . . 1 . . . . . . . Fabricators . | . . . . . . . . . . . . . . . . Repair Stations . | . . . . . . . . . . . . . . . . Recycling Units . | . . . . . . . . . . . . . . . . Scanalyzers . | . . . . . . . . . . . . . . . . Garrison Access . | . . . . . . . . . . . . . . . . Data Cores Recovered 1 | . . . . . . . . . . . . . . 1 . Used 1 | . . . . . . . . . . . . . . 1 . Hacking Detections 16 | . . . 1 . 1 2 1 1 2 2 3 . . 1 2 Full Trace Events 2 | . . . . . . . . 1 1 . . . . . . Feedback Events . | . . . . . . . . . . . . . . . . Feedback Blocked . | . . . . . . . . . . . . . . . . Robot Schematics Acquired 1 | . . . . . . . . . . . . . . . 1 Robots Built 3 | . . . . . . . . . 3 . . . . . . Matter 285 | . . . . . . . . . 285 . . . . . . Time 76 | . . . . . . . . . 76 . . . . . . Total Robot Build Rating 15 | . . . . . . . . . 15 . . . . . . Part Schematics Acquired . | . . . . . . . . . . . . . . . . Parts Built 3 | . . . . . . 2 1 . . . . . . . . Matter 709 | . . . . . . 168 285 . . . 256 . . . . Time 288 | . . . . . . 84 76 . . . 128 . . . . Total Part Build Rating 13 | . . . . . . 8 5 . . . . . . . . Parts Repaired 3 | . . . 2 . . . 1 . . . . . . . . Time 96 | . . . 52 . . . 44 . . . . . . . . Parts Recycled . | . . . . . . . . . . . . . . . . Recycled Matter . | . . . . . . . . . . . . . . . . Retrieved Matter . | . . . . . . . . . . . . . . . . Retrieved Components . | . . . . . . . . . . . . . . . . Parts Scanalyzed . | . . . . . . . . . . . . . . . . Part Schematics Acquired . | . . . . . . . . . . . . . . . . Parts Damaged . | . . . . . . . . . . . . . . . . Bothacking | -11 -10 -10 -9 -9 -8 -7 -6 -5 -4 -3 -3 -2 -2 -1 -1 ------------ Run | Scr Mat Min Mat Min Mat Fac Fac Fac Fac Res Tes Res Qua Acc Com Used RIF Installer . | . . . . . . . . . . . . . . . . Robots Hacked . | . . . . . . . . . . . . . . . . Non-combat . | . . . . . . . . . . . . . . . . Combat . | . . . . . . . . . . . . . . . . Robot Hacks Applied . | . . . . . . . . . . . . . . . . Relay Couplers Released . | . . . . . . . . . . . . . . . . Robots Rewired . | . . . . . . . . . . . . . . . . Allies Hacked . | . . . . . . . . . . . . . . . . Hacks Repelled . | . . . . . . . . . . . . . . . . Allies | -11 -10 -10 -9 -9 -8 -7 -6 -5 -4 -3 -3 -2 -2 -1 -1 -------- Run | Scr Mat Min Mat Min Mat Fac Fac Fac Fac Res Tes Res Qua Acc Com Total Allies 17 | . . . . 5 . . . . 3 . . . 3 . 6 Largest Group 4 | . . . . 4 4 3 . . 3 . . . 3 . 4 Highest-Rated Group 138 | . . . . 68 68 55 . . 87 . . . 138 . 54 Highest-Rated Ally 46 | . . . . 31 28 23 . . 29 . . . 46 . 15 Total Orders . | . . . . . . . . . . . . . . . . Ally Attacks 64 | . . . . 24 26 . . . 1 . . . 3 . 10 Total Damage 1220 | . . . . 427 284 . . . . . . . 63 . 446 Kills 17 | . . . . 9 5 . . . . . . . . . 3 Allies Corrupted . | . . . . . . . . . . . . . . . . Allies Melted . | . . . . . . . . . . . . . . . . Intel | -11 -10 -10 -9 -9 -8 -7 -6 -5 -4 -3 -3 -2 -2 -1 -1 ------- Run | Scr Mat Min Mat Min Mat Fac Fac Fac Fac Res Tes Res Qua Acc Com Robot Analysis Total . | . . . . . . . . . . . . . . . . Derelict Logs Recovered 3 | . . 1 . 2 . . . . . . . . . . . Drone Launches . | . . . . . . . . . . . . . . . . Drone Recoveries . | . . . . . . . . . . . . . . . . Exploration | -11 -10 -10 -9 -9 -8 -7 -6 -5 -4 -3 -3 -2 -2 -1 -1 ------------- Run | Scr Mat Min Mat Min Mat Fac Fac Fac Fac Res Tes Res Qua Acc Com Turns Passed 9219 | 43 196 426 876 1118 398 1630 1217 573 1431 246 395 294 144 107 125 Spaces Moved 7369 | 29 101 199 510 804 259 1036 712 423 943 231 744 510 324 250 294 Core 238 | 2 . 14 . . . . . . 2 189 . . . . 31 Treads 198 | . . 121 77 . . . . . . . . . . . . Legs 4800 | 27 101 64 433 804 259 1036 712 423 941 . . . . . . Wheels . | . . . . . . . . . . . . . . . . Hover . | . . . . . . . . . . . . . . . . Flight 2133 | . . . . . . . . . . 42 744 510 324 250 263 Fastest Speed 20 | 50 120 120 120 120 126 120 120 120 120 37 21 20 23 23 30 Average Speed 94 | 115 120 159 126 121 126 122 120 120 120 83 33 21 23 29 33 Slowest Speed 350 | 120 120 350 160 130 126 150 120 120 350 350 40 23 23 112 150 Overloaded Moves . | . . . . . . . . . . . . . . . . Propulsion Burnouts . | . . . . . . . . . . . . . . . . Robots Hopped 45 | . . . . . . . . . . 1 12 9 9 3 11 Cave-ins Triggered . | . . . . . . . . . . . . . . . . Exploration Rate (%) 32 | 3 23 40 45 98 32 36 25 14 30 8 76 20 43 9 16 Regions Visited 15 Branch Regions 5 Pre-discovered Areas . | . . . . . . . . . . . . . . . . Known Exits Taken 1 | . . . . . 1 . . . . . . . . . . Unknown Exits Taken 14 | 1 1 1 1 1 . 1 1 1 1 1 1 1 1 1 . Scrap Searched 3 | . . 1 . 2 . . . . . . . . . . . Spaces Dug 34 | . . . . . . 1 2 4 6 . 4 . 9 4 4 Terrain Destroyed 37 | . . . . . . 1 2 4 6 . 5 . 9 6 4 Melee 23 | . . . . . . 1 2 4 6 . 1 . 9 . . Projectile 14 | . . . . . . . . . . . 4 . . 6 4 AOE . | . . . . . . . . . . . . . . . . Terrain Rammed . | . . . . . . . . . . . . . . . . Walls Destroyed . | . . . . . . . . . . . . . . . . Machines Disabled . | . . . . . . . . . . . . . . . . Actions | -11 -10 -10 -9 -9 -8 -7 -6 -5 -4 -3 -3 -2 -2 -1 -1 --------- Run | Scr Mat Min Mat Min Mat Fac Fac Fac Fac Res Tes Res Qua Acc Com Total 9158 | 35 146 257 669 922 325 1347 1029 477 1200 278 852 682 352 279 308 Wait 1050 | 1 26 6 86 68 34 188 210 22 179 23 49 139 11 2 6 Move 7266 | 28 100 198 509 803 258 1035 711 422 942 228 720 491 305 243 273 Hop 43 | . . . . . . . . . . 1 11 9 9 3 10 Pick Up 86 | . 1 11 8 10 7 19 6 2 5 4 7 3 . 3 . Fast Attach 87 | 6 1 7 6 1 3 9 6 4 4 4 16 9 5 6 . Attach 53 | . . 2 3 . 3 6 3 2 10 4 10 4 1 4 1 Detach 14 | . . . 1 . . . . . 2 2 3 4 . 1 1 Swap 43 | . 1 1 4 7 2 9 13 2 3 . 1 . . . . Drop 131 | . 1 2 12 16 9 21 18 6 5 8 14 8 3 4 4 Fire 141 | . 16 26 40 15 . . . . . . 14 12 . 13 5 Melee 226 | . . . . . 9 59 62 17 50 4 7 3 15 . . Ram . | . . . . . . . . . . . . . . . . Kick 4 | . . 4 . . . . . . . . . . . . . Crush . | . . . . . . . . . . . . . . . . Escape Stasis 11 | . . . . . . . . . . . . . 3 . 8 Rewire . | . . . . . . . . . . . . . . . . Trap 3 | . . . . 2 . 1 . . . . . . . . . Miscellaneous . | . . . . . . . . . . . . . . . . Route ------- -11/Scrapyard -10/Materials -10/Mines (discovered 2 exits: *Mat x2) -9/Materials (discovered 2 exits: *Mat / [*Min]) -9/Mines (discovered 2 exits: *Mat x2) -8/Materials (discovered 4 exits: *Fac x3 / Sto) -7/Factory -6/Factory (discovered 2 exits: *Fac x2) -5/Factory -4/Factory -3/Research -3/Testing -2/Research -2/Quarantine -1/Access -1/Command To Fleet Rendezvous History --------- Turn | Location | Event 10 | -11/Scrapyard | Discovered new exit (range 16) 44 | -11/Scrapyard | Entered Materials 203 | -10/Materials | Discovered new exit (range 5) 240 | -10/Materials | Entered Mines 271 | -10/Mines | Discovered new exit (range 10) 293 | -10/Mines | Lost 5 parts (1p2n2w) 300 | -10/Mines | Build established: Mutant 335 | -10/Mines | Received a Rocket Launcher from a helpful Derelict 375 | -10/Mines | Core integrity fell below 50% 393 | -10/Mines | Core integrity fell below 20% 417 | -10/Mines | Lost 4 parts (1p1n2w) 581 | -10/Mines | Learned Materials emergency access door positions 653 | -10/Mines | Discovered new exit (range 9) 666 | -10/Mines | Entered Materials 666 | -9/Materials | Evolved 2 slots: Utility x2 745 | -9/Materials | Build established: Scavenger-Mutant 1110 | -9/Materials | Discovered new exit (range 16) 1299 | -9/Materials | Repaired Aluminum Leg 1327 | -9/Materials | Repaired Aluminum Leg 1525 | -9/Materials | Discovered new exit (range 10) 1542 | -9/Materials | Entered Mines 1614 | -9/Mines | Found a hidden stash of uninstalled traps 1880 | -9/Mines | Build established: Mutant 1935 | -9/Mines | Discovered new exit (range 8) 2252 | -9/Mines | A weapon hastily lodged in a ceiling crevice suddenly fell to the ground 2351 | -9/Mines | Learned Materials garrison access intel 2507 | -9/Mines | Assisted by bots powering up and referring to "LRC-V3" 2642 | -9/Mines | Discovered new exit (range 7) 2649 | -9/Mines | Learned 8 Materials zone layouts 2660 | -9/Mines | Entered Materials 2660 | -8/Materials | Accompanied by 4 allies 2660 | -8/Materials | Evolved 2 slots: Propulsion x1, Utility x1 2661 | -8/Materials | Identified exit to Storage 2661 | -8/Materials | Identified exit to Factory 2662 | -8/Materials | Loaded intel: 1 garrison access location 2665 | -8/Materials | Led the pair of lost Derelicts to an unsafe place 2910 | -8/Materials | Garrison activated, responded to threat 3058 | -8/Materials | Entered Factory 3058 | -7/Factory | Accompanied by 3 allies 3058 | -7/Factory | Evolved 2 slots: Utility x1, Weapon x1 4432 | -7/Factory | Fabricated Gatling Laser? 4527 | -7/Factory | Discovered new exit (range 16) 4688 | -7/Factory | Entered another Factory area 4688 | -6/Factory | Evolved 2 slots: Utility x2 4993 | -6/Factory | Fabricated Shock Maul (x1) 5325 | -6/Factory | Repaired Imp. Carbon-fiber Leg 5351 | -6/Factory | Discovered new exit (range 21) 5834 | -6/Factory | Discovered new exit (range 3) 5905 | -6/Factory | Entered another Factory area 5905 | -5/Factory | Evolved 2 slots: Utility x2 6443 | -5/Factory | Discovered new exit (range 15) 6478 | -5/Factory | Entered another Factory area 6478 | -4/Factory | Evolved 2 slots: Utility x2 6856 | -4/Factory | Fabricated G-50 Soldier? 6928 | -4/Factory | Spotted B-86 Titan 7230 | -4/Factory | System corruption reached 10% 7252 | -4/Factory | Lost 3 parts (3u) 7782 | -4/Factory | Garrison activated, responded to threat 7899 | -4/Factory | Discovered new exit (range 5) 7909 | -4/Factory | Entered Research 7909 | -3/Research | Evolved 2 slots: Power x1, Propulsion x1 7938 | -3/Research | Lost 17 parts (1p6n7u3w) 7944 | -3/Research | Discovered new exit (range 23) 8040 | -3/Research | Spotted B-86 Titan 8098 | -3/Research | Spotted B-86 Titan 8155 | -3/Research | Entered Testing 8262 | -3/Testing | Found Prototype Energy Gun 8262 | -3/Testing | Identified Warp Gun 8338 | -3/Testing | Spotted Striker 8338 | -3/Testing | Spotted Striker 8363 | -3/Testing | Found Portable AFG 8447 | -3/Testing | Discovered new exit (range 10) 8550 | -3/Testing | Entered Research 8550 | -2/Research | Evolved 2 slots: Power x1, Propulsion x1 8570 | -2/Research | Found Unknown Device 8570 | -2/Research | Identified Quantum Capacitor 8706 | -2/Research | Found Enh. Force Lance 8726 | -2/Research | Build established: Sprinter 8730 | -2/Research | Spotted B-90 Cyclops 8840 | -2/Research | Discovered new exit (range 4) 8844 | -2/Research | Entered Quarantine 8849 | -2/Quarantine | Found Alien Artifact 8849 | -2/Quarantine | Identified Matter Drive 8889 | -2/Quarantine | Allied Derelicts emerged from ambush trap array 8893 | -2/Quarantine | P-80 Master assimilated allied WL-I60(g) 8919 | -2/Quarantine | Found Alien Artifact 8919 | -2/Quarantine | Identified Subatomic Replicator 8957 | -2/Quarantine | Found Alien Artifact 8957 | -2/Quarantine | Identified Core Reset Matrix 8957 | -2/Quarantine | Used Core Reset Matrix 8961 | -2/Quarantine | Detected hypermatrix surge 8961 | -2/Quarantine | Sensed 4 artifacts in vicinity 8971 | -2/Quarantine | Scanned by Researcher 8985 | -2/Quarantine | Discovered new exit (range 9) 8988 | -2/Quarantine | Entered Access 8988 | -1/Access | Evolved 2 slots: Utility x2 8996 | -1/Access | Used Subatomic Replicator to replicate Hvy. Quantum Rifle 9087 | -1/Access | Spotted B-99 Colossus 9091 | -1/Access | Spotted B-99 Colossus 9093 | -1/Access | Discovered new exit (range 4) 9095 | -1/Access | Entered Command 9145 | -1/Command | Spotted B-99 Colossus 9158 | -1/Command | Spotted Alpha 7 9158 | -1/Command | Spotted Alpha 7 9158 | -1/Command | Spotted Striker 9158 | -1/Command | Spotted Striker 9158 | -1/Command | Spotted Executioner 9158 | -1/Command | Spotted Executioner 9158 | -1/Command | Spotted Executioner 9158 | -1/Command | Spotted Executioner 9158 | -1/Command | Spotted B-99 Colossus 9159 | -1/Command | Spotted B-99 Colossus 9196 | -1/Command | Core integrity fell below 50% 9202 | -1/Command | Emitted hypermatrix ping 9202 | -1/Command | Discovered new exit (range 5) 9207 | -1/Command | Assembled emerged from beneath the floor 9207 | -1/Command | Allies destroyed Striker 9216 | -1/Command | Core integrity fell below 20% 9220 | *** | Heading to fleet! Last Messages --------------- 09215_ Slug penetrates Access Shell. 09215_ Penetrated by Slug. 09217_ Portable AFG generating attraction field. 09217_ Slug penetrates S-43 Plague. 09217_ S-43 Plague destroyed. 09217_ Slug penetrates Wall. 09218_ Hvy. Quantum Rifle destroyed. 09218_ Slug penetrates Access Shell. 09218_ Slug penetrates Wall. 09218_ Slug penetrates G-73 Enforcer. 09218_ as-53116 destroyed. 09218_ Slug penetrates Wall. 09219_ Penetrated by Slug. 09219_ 2N-1CE's Frost Array destroyed. 09219_ Penetrated by Slug. 09219_ Slug penetrates Wall. 09220_ Portable AFG generating attraction field. 09220_ Slammed into Striker. [Achievement: Home At Last?] [Achievement: By A Hair] Map ----- +----------------------------------------------------+ | #?????????????????????????????????????????????? | | #?????????????????????????????????????????????? | | #?????????????????????????????????????????????? | | #?????????????????????????????????????????????? | | #?????????????????????????????????????????????? | | ####?????????????????????????????????????????????? | | #???????????????????????????????????? ??????????? | | #???????????????????????????????????? #?????????? | | #??????????????????????????????????? #????????? | | #??????????????????????????????????? #????????? | | #??????#???????????????????????????? #????????? | | #????? #???????????????????????????? #????????? | | #???? #???????????????????????????? #????????? | | #???? #????????????????????????????# #????????? | | ##?? #????????????????????????????# #????????? | | "#? #????????????????????????????# #????????? | | "#? #????????????????????????????# #????????? | | #! ?????????????????????????????# #????????? | | # ???????????????????????????????# #????????? | | */ ???????????????###############???# #????????? | | *# ?????????????# ;#???# #????????? | | [# ???######### ##???# #????????? | | "#? #### # # # # ^ ;#???# #????????? | | "######## ^ ^ """" ##???# #????????? | | ; ^ BB " ;#???# #????????? | | + g K@ ##???# #????????? | | % ^ g E 7g "" #????# #????????? | | =;^ ^^ g 7g%= " #????# #????????? | | "#"###"#; ^ ^ =E=%% " #????# #????????? | | ##;;# # # ; ;E=E=!% #???## ##???????? | | # ##########; BB&%=% #???# #???????? | | ##?????????## BB%!% #???# T" #???????? | | #???????????######%;#;;"##???# "" #???????? | | #????????????????########????# #???????? | | ##"##################??????????????# #???????? | | ?#" === #??????????????### ###???????? | | ?## == #????????????????# #??###????? | | ??# == ######???????????# #??]!#????? | | ??# # ############# #?]] #????? | | ??# # # #?]! #????? | | ??# # # ##+######## # #????? | | ??# # # # ## # #????? | | ??#######+#+######### + # ## + ! #????? | | / # # """" ## # #????? | | ###### # # """" ## ######????? | | #????# + # """" # ########## | | #????# # # """" # | | ########### # # #######+## | | """" """" # ## #????????? | | """" """" # "" ## #????????? | +----------------------------------------------------+ Best States ------------- Heat Dissipation 152 Coolant Potential 80 Energy Generation 56 Energy Capacity 340 Matter Stores 300 Matter Capacity 300 Sight Range 23 Terrain Scan Density 10 Cloak Strength 3 Base Temperature (-) 200 Armor Coverage 525 Resistance: KI 30 Resistance: TH 30 Power Shielding 66 Weapon Shielding 33 Melee Speed Boost 20 Evasion (%) 74 Targeting Accuracy 11 Melee Accuracy 24 Target Analysis 8 Core Analysis 10 Recoil Reduction 2 Energy Filtering 30 Item Schematics ----------------- None Robot Schematics ------------------ R-06 Scavenger | -1/Command | Hacked Fabricated ------------ Gatling Laser | x2 | -7/Factory | Preloaded Shock Maul | x1 | -6/Factory | Preloaded G-50 Soldier | x3 | -4/Factory | Preloaded Alien Tech Used ----------------- Matter Drive Subatomic Replicator Core Reset Matrix Achievements -------------- By A Hair Home At Last? Challenges ------------ None Game ------ Seed TrackerThunderAxe Manual? 0 Play Time 01:15:36 Cumulative 218.4 hours Start 2021.05.19 @ 00:01:45 End 2021.05.19 @ 10:42:15 Sessions 2 Manual Loads 0 Difficulty Rogue Special Mode None Game No. 416 Rogue 261 Adventurer 148 Explorer 7 Win Type 2 Total 8 Types 6/0/1/1/0/0/0/0/0 Lore% 74 Gallery% 85 Achievement% 63 Wizard Run 0 Options --------- ASCII 0 Keyboard 0 Movement Numpad Keybinds 0 Fullscreen 1 Font 14/X11 Map View 84x54 Tactical HUD 1 Map Filters NONE Filters NONE Steam 1 RUN: 6ae860a5-0d42-42ac-a894-61bde8f4037a